bitfinex/quotes_BTCUSD_20250802
["timestamp","ask_amount","ask_price","bid_price","bid_amount"]
[1754137003720,1.4441527,113990.0,113980.0,0.0714437]
[1754137004127,6.4441527,113990.0,113980.0,0.0714437]
[1754137007320,6.45789275,113990.0,113980.0,0.0714437]
[1754137008787,6.45789275,113990.0,113980.0,0.0682137]
[1754137009007,6.45789275,113990.0,113980.0,0.06108072]
[1754137009976,6.45789275,113990.0,113980.0,0.06431072]
[1754137010223,6.45789275,113990.0,113980.0,0.06633072]
[1754137010975,1.45789275,113990.0,113980.0,0.06633072]
[1754137011227,6.45789275,113990.0,113980.0,0.06633072]
[1754137013058,1.45789275,113990.0,113980.0,0.06633072]
[1754137013309,6.45789275,113990.0,113980.0,0.06633072]
[1754137013800,6.4441527,113990.0,113980.0,0.06633072]
[1754137015075,1.4441527,113990.0,113980.0,0.06633072]
[1754137015304,6.4441527,113990.0,113980.0,0.06633072]
[1754137016509,6.45789263,113990.0,113980.0,0.06633072]
[1754137017202,6.44351207,113990.0,113980.0,0.06633072]
[1754137017672,6.45172872,113990.0,113980.0,0.06633072]
[1754137017914,6.44351207,113990.0,113980.0,0.06633072]
[1754137019332,1.44351207,113990.0,113980.0,0.06633072]
[1754137019544,6.44351207,113990.0,113980.0,0.06633072]
[1754137020889,6.45172899,113990.0,113980.0,0.06633072]
[1754137021192,6.44967494,113990.0,113980.0,0.06633072]
[1754137022405,6.25707192,113990.0,113980.0,0.06633072]
[1754137023564,6.23194761,113990.0,113980.0,0.06633072]
[1754137023796,6.25088045,113990.0,113980.0,0.06633072]
[1754137025050,6.26525964,113990.0,113980.0,0.06633072]
[1754137025662,6.26525955,113990.0,113980.0,0.06633072]
[1754137026735,6.26526134,113990.0,113980.0,0.06633072]
[1754137028293,6.26526134,113990.0,113980.0,0.06431072]
[1754137031734,6.74910514,113990.0,113980.0,0.06431072]
[1754137032575,6.77277331,113990.0,113980.0,0.06431072]
[1754137033339,6.76455663,113990.0,113980.0,0.06431072]
[1754137033569,6.75903565,113990.0,113980.0,0.06431072]
[1754137035296,6.73536748,113990.0,113980.0,0.06096703]
[1754137035511,1.73536748,113990.0,113980.0,0.06096703]
[1754137035717,6.73536748,113990.0,113980.0,0.05042388]
[1754137036655,6.74910778,113990.0,113980.0,0.04593831]
[1754137037733,6.66490789,113990.0,113980.0,0.04593831]
[1754137037947,1.66490789,113990.0,113980.0,0.04593831]
[1754137038162,6.66490789,113990.0,113980.0,0.04593831]
[1754137040250,6.66490789,113990.0,113980.0,0.04037668]
[1754137041747,6.66490789,113990.0,113980.0,0.04236668]
[1754137042032,6.74910778,113990.0,113980.0,0.04236668]
[1754137044061,6.66490789,113990.0,113980.0,0.04236668]
[1754137045081,1.66490789,113990.0,113980.0,0.0588599]
[1754137045470,6.66490789,113990.0,113980.0,0.0588599]
[1754137046152,1.66490789,113990.0,113980.0,0.0588599]
[1754137046373,6.66490789,113990.0,113980.0,0.0588599]
[1754137046601,6.67773283,113990.0,113980.0,0.0588599]
[1754137047231,6.65879829,113990.0,113980.0,0.0588599]
[1754137047415,6.67773386,113990.0,113980.0,0.0588599]
[1754137048092,6.67773505,113990.0,113980.0,0.05886015]
[1754137050146,1.67773505,113990.0,113980.0,0.05886015]
[1754137050373,6.70140451,113990.0,113980.0,0.05886015]
[1754137051039,6.70140457,113990.0,113980.0,0.0588598]
[1754137055179,6.71764457,113990.0,113980.0,0.0588598]
[1754137055418,0.57445558,113990.0,113980.0,0.6143743]
[1754137055661,0.54805858,113990.0,113980.0,0.6143743]
[1754137055896,0.53431828,113990.0,113980.0,0.6143743]
[1754137056124,0.51538271,113990.0,113980.0,0.6143743]
[1754137056357,0.85538271,113990.0,113980.0,0.67585173]
[1754137056587,0.51538271,113990.0,113980.0,0.6143743]
[1754137056826,0.85538271,113990.0,113980.0,0.6143743]
[1754137057500,0.51538271,113990.0,113980.0,0.7483343]
[1754137057823,0.84716405,113990.0,113980.0,0.7483343]
[1754137058494,0.85473766,113990.0,113980.0,0.7483343]
[1754137059913,0.85473766,113990.0,113980.0,0.74829129]
[1754137060624,0.85473766,113990.0,113980.0,0.19277679]
[1754137060850,0.85473766,113990.0,113980.0,0.74829129]
[1754137063659,0.85473766,113990.0,113980.0,0.74827736]
[1754137066696,0.85473766,113990.0,113980.0,1.01707736]
[1754137068791,0.841,113990.0,113980.0,1.29483461]
[1754137069953,0.841,113990.0,113980.0,1.01707736]
[1754137070846,0.841,113990.0,113980.0,0.74827736]
[1754137071491,0.841,113990.0,113980.0,0.73184118]
[1754137072836,0.85473756,113990.0,113980.0,0.73184118]
[1754137074055,0.85473756,113990.0,113980.0,0.73196118]
[1754137076342,0.841,113990.0,113980.0,0.73196118]
[1754137076786,0.841,113990.0,113980.0,1.00076118]
[1754137080444,0.85473745,113990.0,113980.0,0.44524668]
[1754137080673,0.35473745,113990.0,113980.0,1.00076118]
[1754137082660,0.35473745,113990.0,113980.0,1.00096118]
[1754137082904,0.35473745,113990.0,113980.0,0.44341668]
[1754137083133,0.53019143,113990.0,113980.0,0.58370393]
[1754137083390,0.54686143,113990.0,113980.0,0.2688]
[1754137083616,0.53927913,113990.0,113980.0,0.40304]
[1754137083850,0.68172598,113990.0,113980.0,0.54655725]
[1754137084063,0.68172598,113990.0,113980.0,1.08825923]
[1754137084064,0.489602,113990.0,113980.0,1.08825923]
[1754137084286,0.489602,113990.0,113980.0,0.67626198]
[1754137084287,0.34715515,113990.0,113980.0,0.67626198]
[1754137084511,0.35536722,113990.0,113980.0,0.74902725]
[1754137084740,0.35536722,113990.0,113980.0,1.0288945]
[1754137084978,0.34715515,113990.0,113980.0,1.0288945]
[1754137085207,0.34715918,113990.0,113980.0,1.30665175]
[1754137085442,0.34715918,113990.0,113980.0,1.0288945]
[1754137086552,0.36089691,113990.0,113980.0,1.0288945]
[1754137087021,0.36089691,113990.0,113980.0,0.75111092]
[1754137089467,0.36089691,113990.0,113980.0,0.76758834]
[1754137090464,0.36089691,113990.0,113980.0,0.75111092]
[1754137090695,0.02089691,113990.0,113980.0,0.75111092]
[1754137090920,0.01473773,113990.0,113980.0,0.75111092]
[1754137091366,0.01473773,113990.0,113980.0,1.04629086]
[1754137091582,0.01473773,113990.0,113980.0,0.76855994]
[1754137093246,0.51473773,113990.0,113980.0,0.76855994]
[1754137093912,0.501,113990.0,113980.0,0.76855994]
[1754137097104,0.51473626,113990.0,113980.0,0.76855994]
[1754137101353,0.51473626,113990.0,113980.0,1.04629086]
[1754137102735,0.51373626,113990.0,113980.0,0.76855994]
[1754137102957,0.51373626,113990.0,113980.0,0.77255994]
[1754137107458,0.51373626,113990.0,113980.0,0.78901083]
[1754137110023,0.51373626,113990.0,113980.0,0.78678083]
[1754137110245,0.51373626,113990.0,113980.0,0.56698181]
[1754137110478,0.51373626,113990.0,113980.0,0.70114181]
[1754137112878,0.51373626,113990.0,113980.0,0.76763181]
[1754137114564,0.51373626,113990.0,113980.0,0.75118092]
[1754137114767,0.51373626,113990.0,113980.0,0.75417092]
[1754137115178,0.51373626,113990.0,113980.0,0.75629092]
[1754137116742,0.51373626,113990.0,113980.0,0.75417092]
[1754137117670,0.51373626,113990.0,113980.0,0.68465092]
[1754137117892,0.52969626,113990.0,113980.0,0.68465092]
[1754137118335,0.51373626,113990.0,113980.0,0.68465092]
[1754137118547,0.51373626,113990.0,113980.0,0.75114092]
[1754137119871,0.51373626,113990.0,113980.0,0.75413092]
[1754137121524,0.51373626,113990.0,113980.0,0.75625092]
[1754137137212,0.51373626,113990.0,113980.0,0.77369994]
[1754137141930,0.51373626,113990.0,113980.0,0.62001092]
[1754137142168,0.51373626,113990.0,113980.0,0.75409092]
[1754137143071,0.51373626,113990.0,113980.0,0.75608092]
[1754137145054,0.51373626,113990.0,113980.0,0.2728]
[1754137145275,0.86736626,113990.0,113980.0,0.40684]
[1754137145491,0.85363,113990.0,113980.0,0.13804]
[1754137148332,0.86736718,113990.0,113980.0,0.13804]
[1754137150714,0.86736718,113990.0,113980.0,0.40684]
[1754137153555,0.85363,113990.0,113980.0,0.40684]
[1754137153992,0.84,113990.0,113980.0,0.40684]
[1754137156552,0.8537373,113990.0,113980.0,0.40684]
[1754137157541,0.8537373,113990.0,113980.0,0.46958]
[1754137157744,0.64655122,113990.0,113980.0,0.46958]
[1754137157963,0.3537373,113990.0,113980.0,0.46958]
[1754137158342,0.3537373,113990.0,113980.0,0.47262]
[1754137159831,0.52919128,113990.0,113980.0,0.47262]
[1754137159983,0.3537373,113990.0,113980.0,0.47262]
[1754137162356,0.52919128,113990.0,113980.0,0.47262]
[1754137162569,0.3537373,113990.0,113980.0,0.47262]
[1754137166163,0.52919128,113990.0,113980.0,0.47262]
[1754137166650,0.52919128,113990.0,113980.0,0.46946]
[1754137166890,0.53535274,113990.0,113980.0,0.46946]
[1754137167584,0.53535274,113990.0,113980.0,0.33554]
[1754137167815,0.54849274,113990.0,113980.0,0.40672]
[1754137168013,0.52982976,113990.0,113980.0,0.40672]
[1754137170035,0.52982976,113990.0,113980.0,0.47223]
[1754137170977,0.54356792,113990.0,113980.0,0.47223]
[1754137171641,0.54356649,113990.0,113980.0,0.47223]
[1754137172454,0.54356674,113990.0,113980.0,0.47223]
[1754137173628,0.58265688,113990.0,113980.0,0.47223]
[1754137173856,0.58265688,113990.0,113980.0,0.47531]
[1754137174103,0.56995974,113990.0,113980.0,0.40672]
[1754137174533,0.58309974,113990.0,113980.0,0.13792]
[1754137174919,0.56995974,113990.0,113980.0,0.13792]
[1754137175365,0.70383974,113990.0,113980.0,0.13792]
[1754137175792,0.78803963,113990.0,113980.0,0.004]
[1754137178112,0.80117963,113990.0,113980.0,0.004]
[1754137179404,0.78803963,113990.0,113980.0,0.004]
[1754137181265,0.78803963,113990.0,113980.0,0.06951]
[1754137181489,0.78803963,113990.0,113980.0,0.004]
[1754137182217,0.80117963,113990.0,113980.0,0.004]
[1754137185259,0.78803963,113990.0,113980.0,0.004]
[1754137187462,0.70383974,113990.0,113980.0,0.004]
[1754137187685,0.70383974,113990.0,113980.0,0.06951]
[1754137187891,0.70383974,113990.0,113980.0,0.07259]
[1754137188796,0.70383673,113990.0,113980.0,0.07259]
[1754137189507,0.70383673,113990.0,113980.0,0.07465]
[1754137194871,0.39450275,113990.0,113980.0,0.35253196]
[1754137195109,0.52842275,113990.0,113980.0,0.35253196]
[1754137195315,0.52842275,113990.0,113980.0,0.07465]
[1754137195818,0.39450275,113990.0,113980.0,0.07465]
[1754137196048,0.52842275,113990.0,113980.0,0.07465]
[1754137197437,0.51405116,113990.0,113980.0,0.07465]
[1754137197650,0.52843575,113990.0,113980.0,0.07465]
[1754137200583,0.39451575,113990.0,113980.0,0.1368232]
[1754137200862,0.39451575,113990.0,113980.0,0.76429392]
[1754137200863,0.36812275,113990.0,113980.0,0.76429392]
[1754137201092,0.01373816,113990.0,113980.0,0.76429392]
[1754137201775,0.35373816,113990.0,113980.0,0.76429392]
[1754137202007,0.01373816,113990.0,113980.0,0.76429392]
[1754137202747,0.5,114000.0,113980.0,1.0596249]
[1754137202973,0.5,114000.0,113990.0,0.27976855]
[1754137203210,0.5,114000.0,113990.0,0.3634144]
[1754137204194,0.34,114020.0,113990.0,0.4980544]
[1754137204429,0.01373507,114000.0,113990.0,0.48194984]
[1754137204655,0.34,114020.0,113990.0,0.48294984]
[1754137205120,0.34,114020.0,114000.0,0.06631]
[1754137205362,0.34,114020.0,114000.0,0.06329]
[1754137205595,0.34,114020.0,114010.0,0.00302]
[1754137205844,0.5,114010.0,113990.0,0.48086984]
[1754137206102,0.84,114010.0,114000.0,0.00208]
[1754137206555,0.84,114010.0,114000.0,0.06537]
[1754137206792,0.84,114010.0,114000.0,0.36320167]
[1754137207755,0.85373486,114010.0,114000.0,0.36622167]
[1754137208441,0.85473486,114010.0,114000.0,0.36622167]
[1754137210314,0.85473486,114010.0,114000.0,0.06839]
[1754137212910,0.85473486,114010.0,114000.0,0.61476538]
[1754137213142,0.35473486,114010.0,114000.0,0.61476538]
[1754137213376,0.35686486,114010.0,114000.0,0.33719]
[1754137213600,0.35686486,114010.0,114000.0,0.33417]
[1754137214022,0.34313,114010.0,114000.0,0.33719]
[1754137218234,0.35686502,114010.0,114000.0,0.33719]
[1754137220369,0.35686502,114010.0,114000.0,0.33209]
[1754137221512,0.35686502,114010.0,114000.0,0.33511]
[1754137221739,0.35686502,114010.0,114000.0,0.33719]
[1754137223544,0.34313,114010.0,114000.0,0.33719]
[1754137224038,0.55800775,114010.0,114000.0,0.40336]
[1754137225219,0.51714455,114010.0,114000.0,0.2688]
[1754137225435,0.68170775,114010.0,114000.0,0.2688]
[1754137226354,0.6878642,114010.0,114000.0,0.2688]
[1754137226846,0.6966342,114010.0,114000.0,0.2688]
[1754137227569,0.71036997,114010.0,114000.0,0.2688]
[1754137228482,0.71858601,114010.0,114000.0,0.2688]
[1754137228924,0.70981601,114010.0,114000.0,0.2688]
[1754137229825,0.53439281,114010.0,114000.0,0.2688]
[1754137230044,0.53218281,114010.0,114000.0,0.32803]
[1754137231351,0.70760601,114010.0,114000.0,0.32803]
[1754137231944,0.53218281,114010.0,114000.0,0.32803]
[1754137235830,0.70760601,114010.0,114000.0,0.32803]
[1754137236119,0.70760601,114010.0,114000.0,0.2688]
[1754137236355,0.70760601,114010.0,114000.0,0.32803]
[1754137236572,0.70760601,114010.0,114000.0,0.05923]
[1754137237908,0.7940259,114010.0,113990.0,0.46537]
[1754137238151,0.8023459,114010.0,113990.0,0.46537]
[1754137238390,0.7940259,114010.0,113990.0,0.46537]
[1754137238638,0.17543859,114000.0,113990.0,0.46243]
[1754137238881,0.17545398,113990.0,113980.0,0.19367]
[1754137239114,0.31621043,113990.0,113980.0,0.05923]
[1754137239353,0.31816043,113990.0,113980.0,0.05923]
[1754137239589,0.33189808,113990.0,113980.0,0.05923]
[1754137240079,0.16466429,113990.0,113980.0,0.05923]
[1754137240528,0.33189808,113990.0,113980.0,0.05923]
[1754137241497,0.33189808,113990.0,113980.0,0.06417]
[1754137241916,0.1564441,113990.0,113980.0,0.06417]
[1754137242608,0.1564441,113990.0,113980.0,0.33297]
[1754137243299,0.1564441,113990.0,113980.0,0.33707]
[1754137244420,0.14270645,113990.0,113980.0,0.33707]
[1754137245350,0.13655,113990.0,113980.0,0.33707]
[1754137247739,0.1502879,113990.0,113980.0,0.33707]
[1754137248639,0.21972185,113990.0,113980.0,0.33707]
[1754137248867,0.1502879,113990.0,113980.0,0.33707]
[1754137249783,0.32574188,113990.0,113980.0,0.33707]
[1754137250208,0.35213688,113990.0,113980.0,0.33707]
[1754137251101,0.32574188,113990.0,113980.0,0.33707]
[1754137251313,0.1502879,113990.0,113980.0,0.33707]
[1754137251524,0.15644476,113990.0,113980.0,0.33707]
[1754137251963,0.33189874,113990.0,113980.0,0.33707]
[1754137252179,0.15644472,113990.0,113980.0,0.33707]
[1754137253484,0.3181608,113990.0,113980.0,0.33707]
[1754137253714,0.14270682,113990.0,113980.0,0.33707]
[1754137253952,0.3181608,113990.0,113980.0,0.33707]
[1754137254396,0.3181608,113990.0,113980.0,0.06827]
[1754137254618,0.3181608,113990.0,113980.0,0.06323]
[1754137254845,0.40236069,113990.0,113980.0,0.06323]
[1754137255144,0.75128069,113990.0,113980.0,0.004]
[1754137255367,5.75948978,113990.0,113980.0,0.004]
[1754137256033,5.75948978,113990.0,113980.0,0.002]
[1754137256526,5.77322924,113990.0,113980.0,0.002]
[1754137256977,0.51546938,113980.0,113970.0,0.46548919]
[1754137257200,0.5236162,113980.0,113970.0,0.47055919]
[1754137258512,0.60881609,113980.0,113970.0,0.47055919]
[1754137259189,0.5246162,113980.0,113970.0,0.33595919]
[1754137260306,0.5246162,113980.0,113970.0,0.06715919]
[1754137260729,0.52461534,113980.0,113970.0,0.06715919]
[1754137261821,0.32292087,113980.0,113970.0,0.06715919]
[1754137262028,0.32093087,113980.0,113970.0,0.06715919]
[1754137262246,0.49640025,113980.0,113970.0,0.06715919]
[1754137263038,0.49838025,113980.0,113970.0,0.06414919]
[1754137263286,0.49838025,113980.0,113970.0,0.06715919]
[1754137266102,0.49838333,113980.0,113970.0,0.06715919]
[1754137268691,0.49838785,113980.0,113970.0,0.06715919]
[1754137269418,0.50660585,113980.0,113970.0,0.06715919]
[1754137271547,0.50660605,113980.0,113970.0,0.06715919]
[1754137271768,0.32915667,113980.0,113970.0,0.06715919]
[1754137271984,0.46331667,113980.0,113970.0,0.06715919]
[1754137272415,0.46331667,113980.0,113970.0,0.34505666]
[1754137273062,0.46331667,113980.0,113970.0,0.06715919]
[1754137274566,0.46331854,113980.0,113970.0,0.06715919]
[1754137277439,0.46332103,113980.0,113970.0,0.06715919]
[1754137279602,0.46332103,113980.0,113970.0,0.34505666]
[1754137279825,0.45505932,113980.0,113970.0,0.34505666]
[1754137280258,0.32093932,113980.0,113970.0,0.06715919]
[1754137280481,0.32093932,113980.0,113970.0,0.34505666]
[1754137282301,0.32916649,113980.0,113970.0,0.34505666]
[1754137284002,0.32916649,113980.0,113970.0,0.61385666]
[1754137284209,0.32916649,113980.0,113970.0,0.33595919]
[1754137286196,0.32917607,113980.0,113970.0,0.33595919]
[1754137286840,0.32917607,113980.0,113970.0,0.61385666]
[1754137288536,0.32917607,113980.0,113970.0,0.33595919]
[1754137288999,0.32917607,113980.0,113970.0,0.61385666]
[1754137289419,0.32917607,113980.0,113970.0,0.63034576]
[1754137290449,0.32917607,113980.0,113970.0,0.61385666]
[1754137292524,0.32917607,113980.0,113970.0,0.33595919]
[1754137292733,0.32917607,113980.0,113970.0,0.61385666]
[1754137294980,0.32917687,113980.0,113970.0,0.61385666]
[1754137296068,0.3209497,113980.0,113970.0,0.61385666]
[1754137297079,0.3209497,113980.0,113970.0,0.33595919]
[1754137297362,0.3209497,113980.0,113970.0,0.61385666]
[1754137297572,0.3209497,113980.0,113970.0,0.33595919]
[1754137300671,0.32094709,113980.0,113970.0,0.33595919]
[1754137303214,0.49641647,113980.0,113970.0,0.33595919]
[1754137303457,0.49222429,113980.0,113970.0,0.33595919]
[1754137303690,0.49839645,113980.0,113970.0,0.33595919]
[1754137304824,0.32292707,113980.0,113970.0,0.33595919]
[1754137305286,0.32292626,113980.0,113970.0,0.33595919]
[1754137305742,0.33115474,113980.0,113970.0,0.33595919]
[1754137306873,0.50662412,113980.0,113970.0,0.33595919]
[1754137307059,0.33115474,113980.0,113970.0,0.33595919]
[1754137307367,0.50662412,113980.0,113970.0,0.33595919]
[1754137308085,0.33115474,113980.0,113970.0,0.33595919]
[1754137308310,0.50662412,113980.0,113970.0,0.33595919]
[1754137309000,0.31412598,113980.0,113970.0,0.33595919]
[1754137309227,0.20658844,113980.0,113970.0,0.47043919]
[1754137310741,0.03111906,113980.0,113970.0,0.47043919]
[1754137311204,0.37111906,113980.0,113970.0,0.47043919]
[1754137312442,0.39751306,113980.0,113970.0,0.47043919]
[1754137313586,0.39553306,113980.0,113970.0,0.47043919]
[1754137315172,0.39553306,113980.0,113970.0,0.74833666]
[1754137318346,0.39553359,113980.0,113970.0,0.74833666]
[1754137319050,0.39553359,113980.0,113970.0,0.47043919]
[1754137319311,0.54460897,113980.0,113970.0,0.74833666]
[1754137319534,0.57100297,113980.0,113970.0,0.47043919]
[1754137320230,0.57297297,113980.0,113970.0,0.47043919]
[1754137320903,0.57297367,113980.0,113970.0,0.47043919]
[1754137322982,0.39750429,113980.0,113970.0,0.47043919]
[1754137323224,0.57297367,113980.0,113970.0,0.47043919]
[1754137323921,0.39750429,113980.0,113970.0,0.47043919]
[1754137324158,0.57297367,113980.0,113970.0,0.47043919]
[1754137324404,0.39750429,113980.0,113970.0,0.47043919]
[1754137325324,0.39553429,113980.0,113970.0,0.47043919]
[1754137325562,0.36914029,113980.0,113970.0,0.47043919]
[1754137325808,0.36913998,113980.0,113970.0,0.47043919]
[1754137326282,0.36913949,113980.0,113970.0,0.74833666]
[1754137328841,0.36913947,113980.0,113970.0,0.74833666]
[1754137338439,0.36913947,113980.0,113970.0,0.47043919]
[1754137338672,0.36913947,113980.0,113970.0,0.74833666]
[1754137338898,0.36913947,113980.0,113970.0,0.47043919]
[1754137339785,0.54460885,113980.0,113970.0,0.33595919]
[1754137340002,0.54657885,113980.0,113970.0,0.47039919]
[1754137340448,0.54657892,113980.0,113970.0,0.47039919]
[1754137347681,0.37110954,113980.0,113970.0,0.47039919]
[1754137348138,0.54657892,113980.0,113970.0,0.26967919]
[1754137348348,0.55242892,113980.0,113970.0,0.26967919]
[1754137348962,0.54893892,113980.0,113970.0,0.26967919]
[1754137349238,0.54276697,113980.0,113970.0,0.26967919]
[1754137349469,0.54893833,113980.0,113970.0,0.26967919]
[1754137349935,0.54657833,113980.0,113970.0,0.32895919]
[1754137352233,0.54657759,113980.0,113970.0,0.32895919]
[1754137352464,0.68117759,113980.0,113970.0,0.32895919]
[1754137355067,0.68117695,113980.0,113970.0,0.32895919]
[1754137357399,0.76537684,113980.0,113970.0,0.32895919]
[1754137357633,0.68117695,113980.0,113970.0,0.32895919]
[1754137358060,0.68117648,113980.0,113970.0,0.32895919]
[1754137362225,0.68117648,113980.0,113970.0,0.26967919]
[1754137362226,0.70757248,113980.0,113970.0,0.26967919]
[1754137362439,5.71342248,113980.0,113970.0,0.00087919]
[1754137364477,5.70993248,113980.0,113970.0,0.00087919]
[1754137364904,5.69619053,113980.0,113970.0,0.00087919]
[1754137366869,5.69618812,113980.0,113970.0,0.00087919]
[1754137367752,5.79412798,113980.0,113970.0,0.00087919]
[1754137367971,5.70992809,113980.0,113970.0,0.00087919]
[1754137369410,5.70756809,113980.0,113970.0,0.06015919]
[1754137378337,5.69934399,113980.0,113970.0,0.06015919]
[1754137378556,5.70756731,113980.0,113970.0,0.06015919]
[1754137379191,5.69382734,113980.0,113970.0,0.06015919]
[1754137381111,5.69382631,113980.0,113970.0,0.06015919]
[1754137381946,5.70756562,113980.0,113970.0,0.06015919]
[1754137386680,5.70756635,113980.0,113970.0,0.06015919]
[1754137389424,5.70756722,113980.0,113970.0,0.06015919]
[1754137390083,5.77573019,113980.0,113970.0,0.06015919]
[1754137390782,5.70756722,113980.0,113970.0,0.06015919]
[1754137392414,5.70757283,113980.0,113970.0,0.06015919]
[1754137394454,5.69383352,113980.0,113970.0,0.06015919]
[1754137397500,5.70757292,113980.0,113970.0,0.06015919]
[1754137398026,5.70757309,113980.0,113970.0,0.06015919]
[1754137403066,5.70757309,113980.0,113970.0,0.06323919]
[1754137403970,5.70757328,113980.0,113970.0,0.06535919]
[1754137406834,5.70757377,113980.0,113970.0,0.06535919]
[1754137407397,5.53210439,113980.0,113970.0,0.06535919]
[1754137408514,5.70757377,113980.0,113970.0,0.06535919]
[1754137409443,5.70757374,113980.0,113970.0,0.06535919]
[1754137409898,5.70757366,113980.0,113970.0,0.06535919]
[1754137410357,5.53210428,113980.0,113970.0,0.06535919]
[1754137411010,0.53210428,113980.0,113970.0,0.06535919]
[1754137411216,5.53210428,113980.0,113970.0,0.06535919]
[1754137415326,5.70757366,113980.0,113970.0,0.06535919]
[1754137417975,5.53210428,113980.0,113970.0,0.06535919]
[1754137419392,0.53073428,113980.0,113970.0,0.06535919]
[1754137419602,0.53073428,113980.0,113970.0,0.34325666]
[1754137419828,0.53073428,113980.0,113970.0,0.06535919]
[1754137420292,0.18973428,113980.0,113970.0,0.06535919]
[1754137421633,0.1897327,113980.0,113970.0,0.06535919]
[1754137421807,0.18888134,113980.0,113970.0,0.06535919]
[1754137422020,0.18888134,113980.0,113970.0,0.12660486]
[1754137422310,0.52888134,113980.0,113970.0,0.12660486]
[1754137423706,0.52888134,113980.0,113970.0,0.06535919]
[1754137424585,0.51514194,113980.0,113970.0,0.06535919]
[1754137425062,0.37994194,113980.0,113970.0,0.34325666]
[1754137425283,0.51502194,113980.0,113970.0,0.34325666]
[1754137425962,0.51502194,113980.0,113970.0,0.61205666]
[1754137426431,0.37994194,113980.0,113970.0,0.61205666]
[1754137426652,0.51502194,113980.0,113970.0,0.61205666]
[1754137426865,0.51502194,113980.0,113970.0,0.33415919]
[1754137427308,0.51501697,113980.0,113970.0,0.33415919]
[1754137427534,0.52875566,113980.0,113970.0,0.33415919]
[1754137428217,0.50321102,113980.0,113970.0,0.39540486]
[1754137428442,0.50321102,113980.0,113970.0,0.26168486]
[1754137428670,0.36813102,113980.0,113970.0,0.20043919]
[1754137430095,0.36813102,113980.0,113970.0,0.47833666]
[1754137430344,0.36813102,113980.0,113970.0,0.20043919]
[1754137431045,0.6806204,113980.0,113970.0,0.06535919]
[1754137431288,0.6806204,113980.0,113970.0,0.06015919]
[1754137431519,0.7070154,113980.0,113970.0,0.06015919]
[1754137432678,0.53154602,113980.0,113970.0,0.06015919]
[1754137432919,0.53154602,113980.0,113970.0,0.06331919]
[1754137433148,0.6806204,113980.0,113970.0,0.06331919]
[1754137433386,0.6806204,113980.0,113970.0,0.06015919]
[1754137441321,0.50515102,113980.0,113970.0,0.06015919]
[1754137441959,0.50515102,113980.0,113970.0,0.06310919]
[1754137442646,0.50515102,113980.0,113970.0,0.34296666]
[1754137442647,0.50317102,113980.0,113970.0,0.34296666]
[1754137443109,0.50317102,113980.0,113970.0,0.06506919]
[1754137446526,0.6806204,113980.0,113970.0,0.06506919]
[1754137446952,0.50515102,113980.0,113970.0,0.06506919]
[1754137447183,0.6806204,113980.0,113970.0,0.06506919]
[1754137448647,0.68061896,113980.0,113970.0,0.06506919]
[1754137448868,0.68061896,113980.0,113970.0,0.06310919]
[1754137452622,0.6806186,113980.0,113970.0,0.06310919]
[1754137455545,0.68061928,113980.0,113970.0,0.06310919]
[1754137457501,0.5051499,113980.0,113970.0,0.06310919]
[1754137457927,0.68061928,113980.0,113970.0,0.06310919]
[1754137458153,0.76481917,113980.0,113970.0,0.06015919]
[1754137458623,0.68061928,113980.0,113970.0,0.06015919]
[1754137459280,0.5051499,113980.0,113970.0,0.06015919]
[1754137459953,0.68061928,113980.0,113970.0,0.06015919]
[1754137461375,0.50515211,113980.0,113970.0,0.06015919]
[1754137461592,0.68062149,113980.0,113970.0,0.06015919]
[1754137462549,0.50515211,113980.0,113970.0,0.06015919]
[1754137462770,0.50515211,113980.0,113970.0,0.06310919]
[1754137463643,0.50515211,113980.0,113970.0,0.06506919]
[1754137464584,0.68062149,113980.0,113970.0,0.06506919]
[1754137467059,0.50515211,113980.0,113970.0,0.06506919]
[1754137473226,0.50515307,113980.0,113970.0,0.06506919]
[1754137476930,0.50317307,113980.0,113970.0,0.06506919]
[1754137477146,0.50317307,113980.0,113970.0,0.34296666]
[1754137478010,0.50317307,113980.0,113970.0,0.06506919]
[1754137478219,0.50515307,113980.0,113970.0,0.06506919]
[1754137478974,0.50515297,113980.0,113970.0,0.06506919]
[1754137479432,0.50515297,113980.0,113970.0,0.06015919]
[1754137479652,0.76482224,113980.0,113970.0,0.06015919]
[1754137479873,0.68062235,113980.0,113970.0,0.06015919]
[1754137481272,0.50515297,113980.0,113970.0,0.06015919]
[1754137481459,0.68062235,113980.0,113970.0,0.06015919]
[1754137481933,0.6806221,113980.0,113970.0,0.06015919]
[1754137486683,0.50515272,113980.0,113970.0,0.06015919]
[1754137487107,0.50515272,113980.0,113970.0,0.06308919]
[1754137487315,0.50515272,113980.0,113970.0,0.06521919]
[1754137488434,0.50317272,113980.0,113970.0,0.34311666]
[1754137489803,0.50317272,113980.0,113970.0,0.06521919]
[1754137489986,0.50317272,113980.0,113970.0,0.34311666]
[1754137490233,0.50317272,113980.0,113970.0,0.06521919]
[1754137492126,0.50317272,113980.0,113970.0,0.34311666]
[1754137493501,0.5031736,113980.0,113970.0,0.34311666]
[1754137496431,0.5031736,113980.0,113970.0,0.06521919]
[1754137497422,0.5051536,113980.0,113970.0,0.06521919]
[1754137498001,0.50515443,113980.0,113970.0,0.06521919]
[1754137502395,0.68062381,113980.0,113970.0,0.06521919]
[1754137502623,0.68062381,113980.0,113970.0,0.06015919]
[1754137503569,0.68062476,113980.0,113970.0,0.06015919]
[1754137504253,0.68062471,113980.0,113970.0,0.06015919]
[1754137505176,0.50515533,113980.0,113970.0,0.06015919]
[1754137505553,0.68062471,113980.0,113970.0,0.06015919]
[1754137507182,0.68062458,113980.0,113970.0,0.06015919]
[1754137508621,0.70702258,113980.0,113970.0,0.06015919]
[1754137509046,0.79358247,113980.0,113970.0,0.00087919]
[1754137509468,0.70938258,113980.0,113970.0,0.00087919]
[1754137510033,0.70938258,113980.0,113970.0,0.05768919]
[1754137511153,0.70702258,113980.0,113970.0,0.05768919]
[1754137512862,0.70702061,113980.0,113970.0,0.05768919]
[1754137518150,0.70702061,113980.0,113970.0,0.06269919]
[1754137518590,0.7070148,113980.0,113970.0,0.06269919]
[1754137520153,0.79121469,113980.0,113970.0,0.05768919]
[1754137520618,0.7070148,113980.0,113970.0,0.05768919]
[1754137524457,0.5719748,113980.0,113970.0,0.06072919]
[1754137524703,0.7068548,113980.0,113970.0,0.06269919]
[1754137524919,0.52940542,113980.0,113970.0,0.34059666]
[1754137525164,0.39452542,113980.0,113970.0,0.34059666]
[1754137525389,0.50308742,113980.0,113970.0,0.40248607]
[1754137526493,0.50308742,113980.0,113970.0,0.34059666]
[1754137527951,0.50308742,113980.0,113970.0,0.06269919]
[1754137529731,0.6785568,113980.0,113970.0,0.06269919]
[1754137530003,0.6805368,113980.0,113970.0,0.06269919]
[1754137530660,0.6805368,113980.0,113970.0,0.05768919]
[1754137531785,0.7069348,113980.0,113970.0,0.05768919]